Workbook

Sheet QuickBooks Desktop Export Tips

Sheet Sheet1
A1: Type | C1: Date | E1: Num | G1: Name | I1: Memo | K1: Amount | M1: Balance
M2: 197132.76
A3: Deposit | C3: 2024-12-02 | I3: Deposit | K3: 47949.74 | M3: =ROUND(M2+K3,5) -> 245082.5
A4: Bill Pmt -Check | C4: 2024-12-02 | E4: 15658 | G4: B. Dalton Bookkeeping | I4: Inv#9539, Bookkeeping/Accounting Services | K4: -530 | M4: =ROUND(M3+K4,5) -> 244552.5
A5: Bill Pmt -Check | C5: 2024-12-02 | E5: 15659 | G5: Bandera Electric Cooperative, Inc. | I5: Inv#5921, Member#1936830 | K5: -745.09 | M5: =ROUND(M4+K5,5) -> 243807.41
A6: Bill Pmt -Check | C6: 2024-12-02 | E6: 15660 | G6: Charley N. Curd | I6: Travel Expense 12/10/24-12/13/24 Texas Children & Nature Network Conference | K6: -506 | M6: =ROUND(M5+K6,5) -> 243301.41
A7: Bill Pmt -Check | C7: 2024-12-02 | E7: 15661 | G7: City of Bandera | I7: Acct#03146500, 10/20/2024-11/20/2024 | K7: -258.35 | M7: =ROUND(M6+K7,5) -> 243043.06
A8: Bill Pmt -Check | C8: 2024-12-02 | E8: 15662 | G8: Nippon Life Insurance Co of America | I8: Inv#0000922185, Period 12/2024 | K8: -848.19 | M8: =ROUND(M7+K8,5) -> 242194.87
A9: Bill Pmt -Check | C9: 2024-12-02 | E9: 15663 | G9: B. Dalton Bookkeeping | I9: Inv#9540, Bookkeeping/Accounting Services | K9: -530 | M9: =ROUND(M8+K9,5) -> 241664.87
A10: Bill Pmt -Check | C10: 2024-12-03 | E10: 15664 | G10: Araseli Avalos | I10: Inv#FY2025-5, cleaning services Dec. 5th & 12th, 2024 | K10: -250 | M10: =ROUND(M9+K10,5) -> 241414.87
A11: Bill Pmt -Check | C11: 2024-12-03 | E11: 15665 | G11: David Jeffery | I11: Inv# 2441, November 2024 | K11: -650 | M11: =ROUND(M10+K11,5) -> 240764.87
A12: Bill Pmt -Check | C12: 2024-12-03 | E12: 15666 | G12: Desert Engineering Group, Inc. | I12: SP060 | K12: -2400 | M12: =ROUND(M11+K12,5) -> 238364.87
A13: Bill Pmt -Check | C13: 2024-12-03 | E13: 15667 | G13: GM Ellis Law Firm PC | I13: Inv#BCRAGD-112, December 2024 Legislative Services | K13: -2500 | M13: =ROUND(M12+K13,5) -> 235864.87
A14: Bill Pmt -Check | C14: 2024-12-03 | E14: 15668 | G14: Araseli Avalos | I14: Inv#FY2025-6, cleaning services Dec. 19th & 26th, 2024 | K14: -250 | M14: =ROUND(M13+K14,5) -> 235614.87
A15: Bill Pmt -Check | C15: 2024-12-03 | E15: 15669 | G15: GM Ellis Law Firm PC | I15: Inv#BCRAGD-108, payment 3 of 3 | K15: -28000 | M15: =ROUND(M14+K15,5) -> 207614.87
A16: Bill Pmt -Check | C16: 2024-12-03 | E16: 15670 | G16: Nueces River Authority | I16: Education Services October 1, 2024-September 30, 2025 | K16: -5000 | M16: =ROUND(M15+K16,5) -> 202614.87
A17: Deposit | C17: 2024-12-04 | I17: Deposit | K17: 43274.05 | M17: =ROUND(M16+K17,5) -> 245888.92
A18: Liability Check | C18: 2024-12-04 | E18: ACH | G18: Ascensus - Simple IRA | K18: -5773.04 | M18: =ROUND(M17+K18,5) -> 240115.88
A19: Deposit | C19: 2024-12-09 | I19: Deposit | K19: 5708 | M19: =ROUND(M18+K19,5) -> 245823.88
A20: Liability Check | C20: 2024-12-12 | G20: QuickBooks Payroll Service | I20: Created by Payroll Service on 12/04/2024 | K20: -26183.87 | M20: =ROUND(M19+K20,5) -> 219640.01
A21: Bill Pmt -Check | C21: 2024-12-12 | E21: 15671 | G21: Bandera Central Appraisal District | I21: FY25QRT1 Allotment | K21: -10850.67 | M21: =ROUND(M20+K21,5) -> 208789.34
A22: Bill Pmt -Check | C22: 2024-12-12 | E22: 15672 | G22: Culligan of the Hill Country | I22: Inv#202412524700, Acct#524700 | K22: -110 | M22: =ROUND(M21+K22,5) -> 208679.34
A23: Bill Pmt -Check | C23: 2024-12-12 | E23: 15673 | G23: Schreiner University | I23: Expanding Your Horizons STEM Confer. sponsorship | K23: -500 | M23: =ROUND(M22+K23,5) -> 208179.34
A24: Bill Pmt -Check | C24: 2024-12-12 | E24: 15674 | G24: The Bandera Prophet | I24: Public Notice/Tax Public Hearing Aug 16-30 | K24: -40 | M24: =ROUND(M23+K24,5) -> 208139.34
A25: Bill Pmt -Check | C25: 2024-12-12 | E25: 15675 | G25: TML-Intergovernmental Risk Pool | I25: Contract#7709, Workers' Comp Audit | K25: -29 | M25: =ROUND(M24+K25,5) -> 208110.34
A26: Bill Pmt -Check | C26: 2024-12-12 | E26: 15676 | G26: United States Geological Survey | I26: Bill#91174595, Period 4/1/2024-6/30/2024 | K26: -21975 | M26: =ROUND(M25+K26,5) -> 186135.34
A27: Bill Pmt -Check | C27: 2024-12-12 | E27: 15677 | G27: Wex Bank | I27: Inv#101495291, Acct#0496-00-486113-4 | K27: -323.74 | M27: =ROUND(M26+K27,5) -> 185811.6
A28: Bill Pmt -Check | C28: 2024-12-12 | E28: 15678 | G28: Xerox Financial Services | I28: 010-0038073-001 | K28: -306.39 | M28: =ROUND(M27+K28,5) -> 185505.21
A29: Deposit | C29: 2024-12-12 | I29: Deposit | K29: 75433.95 | M29: =ROUND(M28+K29,5) -> 260939.16
A30: Paycheck | C30: 2024-12-13 | E30: DD | G30: Carter, Clinton R | I30: Direct Deposit | K30: 0 | M30: =ROUND(M29+K30,5) -> 260939.16
A31: Paycheck | C31: 2024-12-13 | E31: DD | G31: Curd, Charley | I31: Direct Deposit | K31: 0 | M31: =ROUND(M30+K31,5) -> 260939.16
A32: Paycheck | C32: 2024-12-13 | E32: DD | G32: Fox, Corrina D | I32: Direct Deposit | K32: 0 | M32: =ROUND(M31+K32,5) -> 260939.16
A33: Paycheck | C33: 2024-12-13 | E33: DD | G33: Hernandez, Hayli D | I33: Direct Deposit | K33: 0 | M33: =ROUND(M32+K33,5) -> 260939.16
A34: Paycheck | C34: 2024-12-13 | E34: DD | G34: Irvin, Diane J | I34: Direct Deposit | K34: 0 | M34: =ROUND(M33+K34,5) -> 260939.16
A35: Paycheck | C35: 2024-12-13 | E35: DD | G35: Mauk, David A | I35: Direct Deposit | K35: 0 | M35: =ROUND(M34+K35,5) -> 260939.16
A36: Paycheck | C36: 2024-12-13 | E36: DD | G36: Sckittone, Shelby L | I36: Direct Deposit | K36: 0 | M36: =ROUND(M35+K36,5) -> 260939.16
A37: Paycheck | C37: 2024-12-13 | E37: DD | G37: Thomas, Larry B | I37: Direct Deposit | K37: 0 | M37: =ROUND(M36+K37,5) -> 260939.16
A38: Paycheck | C38: 2024-12-13 | E38: DD | G38: Whitmire, Luke E | I38: Direct Deposit | K38: 0 | M38: =ROUND(M37+K38,5) -> 260939.16
A39: Liability Check | C39: 2024-12-13 | E39: EFtPS | G39: United States Treasury | I39: 74-2576034 | K39: -8777.1 | M39: =ROUND(M38+K39,5) -> 252162.06
A40: Check | C40: 2024-12-17 | E40: RET | G40: returned check | I40: Watts - Permit deposoted on 12/9/24 | K40: -500 | M40: =ROUND(M39+K40,5) -> 251662.06
A41: Check | C41: 2024-12-17 | E41: D | I41: NSF Fee | K41: -10 | M41: =ROUND(M40+K41,5) -> 251652.06
A42: Bill Pmt -Check | C42: 2024-12-19 | E42: 15679 | G42: Cohn Insurance Agency | I42: Inv#QRT2FY25, Jan-Mar 2024 Medina Annex building & garage rent | K42: -2400 | M42: =ROUND(M41+K42,5) -> 249252.06
A43: Bill Pmt -Check | C43: 2024-12-19 | E43: 15680 | G43: Cow Creek GCD | I43: Inv#14376, AGS GMA 9 Hydrogeologic Consulting | K43: -371.06 | M43: =ROUND(M42+K43,5) -> 248881
A44: Bill Pmt -Check | C44: 2024-12-19 | E44: 15681 | G44: Hill Country Pest Control, Inc. | I44: Inv#596191, commercial pest service | K44: -63.25 | M44: =ROUND(M43+K44,5) -> 248817.75
A45: Bill Pmt -Check | C45: 2024-12-19 | E45: 15682 | G45: Mosty Law Firm | I45: Inv#02450, BCRAGD General | K45: -630 | M45: =ROUND(M44+K45,5) -> 248187.75
A46: Bill Pmt -Check | C46: 2024-12-19 | E46: 15683 | G46: Propane Depot, Inc. | I46: Inv#56059, Acct#703, propane 91.0 | K46: -245.7 | M46: =ROUND(M45+K46,5) -> 247942.05
A47: Bill Pmt -Check | C47: 2024-12-19 | E47: 15684 | G47: Card Service Center | I47: Acct#xxxx0067, Nov. 8, 2024-Dec. 8, 2024 | K47: -2162.85 | M47: =ROUND(M46+K47,5) -> 245779.2
A48: Deposit | C48: 2024-12-19 | I48: Deposit | K48: 56134.46 | M48: =ROUND(M47+K48,5) -> 301913.66
A49: Deposit | C49: 2024-12-19 | I49: Deposit | K49: 30357.82 | M49: =ROUND(M48+K49,5) -> 332271.48
A50: Check | C50: 2024-12-19 | E50: D | G50: AT&T | I50: 020 641 1032 001 | K50: -90 | M50: =ROUND(M49+K50,5) -> 332181.48
A51: Check | C51: 2024-12-20 | E51: D | G51: Bandera Bank | K51: -2052.79 | M51: =ROUND(M50+K51,5) -> 330128.69
A52: Liability Check | C52: 2024-12-26 | G52: QuickBooks Payroll Service | I52: Created by Payroll Service on 12/04/2024 | K52: -26183.91 | M52: =ROUND(M51+K52,5) -> 303944.78
A53: Paycheck | C53: 2024-12-27 | E53: DD | G53: Carter, Clinton R | I53: Direct Deposit | K53: 0 | M53: =ROUND(M52+K53,5) -> 303944.78
A54: Paycheck | C54: 2024-12-27 | E54: DD | G54: Curd, Charley | I54: Direct Deposit | K54: 0 | M54: =ROUND(M53+K54,5) -> 303944.78
A55: Paycheck | C55: 2024-12-27 | E55: DD | G55: Fox, Corrina D | I55: Direct Deposit | K55: 0 | M55: =ROUND(M54+K55,5) -> 303944.78
A56: Paycheck | C56: 2024-12-27 | E56: DD | G56: Hernandez, Hayli D | I56: Direct Deposit | K56: 0 | M56: =ROUND(M55+K56,5) -> 303944.78
A57: Paycheck | C57: 2024-12-27 | E57: DD | G57: Irvin, Diane J | I57: Direct Deposit | K57: 0 | M57: =ROUND(M56+K57,5) -> 303944.78
A58: Paycheck | C58: 2024-12-27 | E58: DD | G58: Mauk, David A | I58: Direct Deposit | K58: 0 | M58: =ROUND(M57+K58,5) -> 303944.78
A59: Paycheck | C59: 2024-12-27 | E59: DD | G59: Sckittone, Shelby L | I59: Direct Deposit | K59: 0 | M59: =ROUND(M58+K59,5) -> 303944.78
A60: Paycheck | C60: 2024-12-27 | E60: DD | G60: Thomas, Larry B | I60: Direct Deposit | K60: 0 | M60: =ROUND(M59+K60,5) -> 303944.78
A61: Paycheck | C61: 2024-12-27 | E61: DD | G61: Whitmire, Luke E | I61: Direct Deposit | K61: 0 | M61: =ROUND(M60+K61,5) -> 303944.78
A62: Liability Check | C62: 2024-12-27 | E62: EFTPS | G62: United States Treasury | I62: 74-2576034 | K62: -8777.02 | M62: =ROUND(M61+K62,5) -> 295167.76
A63: Deposit | C63: 2024-12-30 | I63: Deposit | K63: 44400 | M63: =ROUND(M62+K63,5) -> 339567.76
A64: Deposit | C64: 2024-12-31 | I64: Interest | K64: 26.84 | M64: =ROUND(M63+K64,5) -> 339594.6
A65: Bill Pmt -Check | C65: 2024-12-31 | G65: Ken Stoepel | I65: QuickBooks generated zero amount transaction for bill payment stub | K65: 0 | M65: =ROUND(M64+K65,5) -> 339594.6
K66: =ROUND(SUM(K2:K65),5) -> 142461.84 | M66: =M65 -> 339594.6
K67: =K66 -> 142461.84 | M67: =M66 -> 339594.6
